Cogmind - Beta 16 @@@ ROGUE MODE // 2025.11.18 @ 20:13:45 Player: Mozco Result: Destroyed by G-34 Mercenary with Small Laser Performance ------------- Evolutions (0) 0 Regions Visited (1) 200 Robots Destroyed (24) 120 Value Destroyed (575) 575 Prototype IDs (0) 0 Alien Tech Used (0) 0 Bonus (0) 0 TOTAL SCORE: 895 Bonus ------- None Cogmind --------- Core Integrity 0/250 Matter 299/300 Energy 125/125 System Corruption 1% Temperature Warm (174) Movement Core (300) Ox5 Location -10/Materials Parts ------- > --- POWER (1) -------- Light Ion Engine > --- PROPULSION (2) --- (None) > --- UTILITY (2) ------ Medium Storage Unit Core Shielding > --- WEAPON (2) ------- Beam Cannon Light Assault Rifle > --- INVENTORY (10) --- Improved Terrain Scanner Weapon Shielding Weapon Shielding Weapon Shielding Weapon Shielding Small Laser Light Assault Rifle Grenade Launcher Grenade Launcher Datajack Peak State ------------ > --- POWER ------------ Ion Engine > --- PROPULSION ------- Compact Wheel Compact Wheel > --- UTILITY ---------- Medium Storage Unit Targeting Computer > --- WEAPON ----------- Small Laser Light Assault Rifle > --- INVENTORY -------- Light Ion Engine Terrain Scanner Improved Terrain Scanner Weapon Shielding Weapon Shielding Beam Cannon Light Assault Rifle Grenade Launcher [Rating: 8] Favorites ----------- Power Ion Engine Engine Ion Engine Propulsion Compact Wheel Wheel Compact Wheel Utility Medium Storage Unit Storage Medium Storage Unit Processor Targeting Computer Protection Core Shielding Weapon Light Assault Rifle Energy Gun Small Laser Energy Cannon Beam Cannon Ballistic Gun Light Assault Rifle Launcher Grenade Launcher Build | -11 -10 ------- Run | Yrd Mat Slots Evolved . | . . Power . | . . Propulsion . | . . Utility . | . . Weapon . | . . Parts Attached 12 | 6 6 Power 2 | 1 1 Engine 2 | 1 1 Core . | . . Reactor . | . . Propulsion 2 | 2 . Treads . | . . Leg . | . . Wheel 2 | 2 . Hover . | . . Flight . | . . Utility 4 | 1 3 Device . | . . Storage 2 | 1 1 Processor 1 | . 1 Hackware . | . . Protection 1 | . 1 Artifact . | . . Weapon 4 | 2 2 Energy Gun 1 | 1 . Energy Cannon 1 | . 1 Ballistic Gun 1 | 1 . Ballistic Cannon . | . . Launcher 1 | . 1 Special Weapon . | . . Impact Weapon . | . . Slashing Weapon . | . . Piercing Weapon . | . . Special Melee Weapon . | . . Unidentified Prototypes . | . . Parts Lost 3 | . 3 Power 1 | . 1 Propulsion 2 | . 2 Utility . | . . Weapon . | . . Highest Loss Streak 2 | . 2 To Critical Strikes . | . . Average Backups 7 | . 8 Power . | . . Propulsion . | . . Utility 3 | . 4 Weapon 2 | . 2 Tool/Special . | . . Unused Backups 8 | . 8 Power . | . . Propulsion . | . . Utility 6 | . 6 Weapon 2 | . 2 Tool/Special . | . . Average Slot Usage (%) 96 | . 96 Engine 14 | . 14 Wheel 25 | . 25 Storage 16 | . 16 Processor 9 | . 9 Energy Gun 11 | . 11 Energy Cannon 2 | . 2 Ballistic Gun 14 | . 14 Peak Build Rating 8 | 6 8 Average Rating 7 | 4 7 On Entrance 3 | . 6 Avg Prop Armor Cover (%) . | . . Naked Turns . | . . Heaviest Build 22 | 12 22 Greatest Support 32 | 32 32 Greatest Overweight (x) 1 | . 1 Average Overweight (x) . | . . Largest Inventory Capacity 10 | 8 10 Average Capacity 9 | 7 9 Most Carried 10 | 2 10 Average Carried 7 | . 8 Final Capacity 10 | 8 10 Final Carried 10 | 2 10 Class Distribution -------------------- 100% | Mutant Dominant Class ---------------- Mutant | -10/Materials Resources | -11 -10 ----------- Run | Yrd Mat Matter Collected 436 | 202 234 Remotely . | . . Salvage Created 791 | . 791 Parts 45 | . 45 Haulers Intercepted 1 | . 1 Recyclers Shooed 1 | . 1 Parts Field Recycled . | . . Retrieved Matter . | . . Parts Self-Destructed . | . . Prevented . | . . Parts Restored . | . . Kills | -11 -10 ------- Run | Yrd Mat Combat Hostiles Destroyed 16 | . 16 Guns 11 | . 11 Cannons 1 | . 1 AOE 4 | . 4 Classes Destroyed 7 | . 7 Tunneler 3 | . 3 Hauler 1 | . 1 Recycler 2 | . 2 Operator 1 | . 1 Watcher 1 | . 1 Swarmer 3 | . 3 Grunt 13 | . 13 Best Kill Streak 7 | . 7 Combat Bots Only 6 | . 6 Max Kills in Single Turn 2 | . 2 Gunslinging . | . . Exploded 1 | . 1 Melee . | . . Uniques/NPCs Destroyed . | . . Combat | -11 -10 -------- Run | Yrd Mat Hostile Shots Fired 86 | . 86 Missed 28 | . 28 Hits 58 | . 58 Projectile 58 | . 58 Damage Taken 658 | . 658 Core 253 | . 253 Absorbed by Shields . | . . Redirected to Shielding 6 | . 6 Core Remaining (%) 100 | 100 . Volleys Fired 67 | 1 66 Largest 2 | 1 2 Hottest 80 | 40 80 Shots Fired 123 | 1 122 Gun 103 | 1 102 Cannon 15 | . 15 Launcher 5 | . 5 Special . | . . Kinetic 62 | . 62 Thermal 56 | 1 55 Explosive 5 | . 5 Electromagnetic . | . . Robot Hit Streak 24 | 1 24 Robot Miss Streak 4 | . 4 Penetration Max . | . . Secondary Targets 4 | . 4 Max Gunslinging Chain 1 | . 1 Shots Hit Robots 90 | 1 89 Core Hits 48 | 1 47 Critical Kills 1 | . 1 Critical Parts Destroyed . | . . Critical Strikes 1 | . 1 Destroy 1 | . 1 Melee Attacks . | . . Impact . | . . Slashing . | . . Piercing . | . . Sneak Attacks . | . . Combat Hostiles . | . . Follow-up Attacks . | . . Damage Inflicted 1288 | 12 1276 Guns 715 | 12 703 Cannons 162 | . 162 Explosions 411 | . 411 Melee . | . . Ramming . | . . Kinetic 358 | . 358 Thermal 519 | 12 507 Explosive 411 | . 411 Electromagnetic . | . . Impact . | . . Slashing . | . . Piercing . | . . Highest Corruption 1 | . 1 Average Corruption 1 | . 1 Corruption Purged . | . . Corruption Blocked . | . . Effects 5 | . 5 Heat Flow Errors 1 | . 1 Data Loss (minor) 3 | . 3 Weapon Failures 1 | . 1 Overload Shots . | . . Overflow Damage . | . . Projectiles . | . . Explosions . | . . Melee . | . . Knockbacks . | . . Impact . | . . Kinetic . | . . Secondary . | . . Self-Inflicted Damage . | . . Shots . | . . Rammed . | . . Targets Rammed . | . . Kicked . | . . Crushed . | . . Highest Temperature 168 | . 168 Average Temperature 41 | . 41 Received Heat Transfer 300 | . 300 Siege Activations . | . . Martial Activations . | . . Shielding Activations . | . . Robots Disrupted . | . . Combat Hostiles . | . . Robots Corrupted . | . . Combat Hostiles . | . . Parts Fried . | . . Impact Corruptions . | . . Robots Melted . | . . Combat Hostiles . | . . Parts Melted 1 | . 1 Heat Transferred 1133 | 25 1108 Parts Sabotaged . | . . Parts Stolen . | . . Parts Stripped . | . . Power Chain Reactions . | . . Alert | -11 -10 ------- Run | Yrd Mat Maximum Alert Level 1 | . 1 Low Security (%) 84 | 100 83 Level 1 15 | . 16 Level 2 . | . . Level 3 . | . . Level 4 . | . . Level 5 . | . . High Security . | . . Max Security . | . . Peak Influence 240 | . 240 Initial . | . . Average 92 | . 103 Influence Increases 551 | . 551 Destroy 0b10 Robot/C 320 | . 320 Destroy 0b10 Robot/NC 40 | . 40 Destroy Leader 74 | . 74 Successful Hack 11 | . 11 Select Force Hacks 60 | . 60 Disable Machine 15 | . 15 Destroy Structure 16 | . 16 Lose Combat Pursuer 15 | . 15 Influence Decreases 322 | . 322 Time Decay 292 | . 292 Lost Part 30 | . 30 Squads Dispatched 6 | . 6 Investigation 4 | . 4 Extermination . | . . Reinforcement 2 | . 2 Assault . | . . Garrison . | . . Intercept . | . . Searches Triggered . | . . Construction Impeded . | . . Haulers Reinforced . | . . Active Scanning Responses . | . . Cargo Convoy Interrupts . | . . Stealth | -11 -10 --------- Run | Yrd Mat Distress Signals 1 | . 1 Communications Jammed . | . . Distress Signals . | . . Times Spotted 23 | . 23 Peak Tracking Total 5 | . 5 Tactical Retreats 1 | . 1 Traps | -11 -10 ------- Run | Yrd Mat Traps Triggered 1 | . 1 Indirectly . | . . Trap Hack Attempts . | . . Triggered . | . . Disarmed . | . . Reprogrammed . | . . Reused . | . . Traps Extracted . | . . Installed . | . . Triggered . | . . Machines | -11 -10 ---------- Run | Yrd Mat Machines Disabled 1 | . 1 Max in Single Turn 1 | . 1 Machines Repaired . | . . Machines Dismantled . | . . Machines Sabotaged . | . . Overloaded Fab Kills . | . . Hacking | -11 -10 --------- Run | Yrd Mat Machines Accessed 5 | . 5 Terminals 3 | . 3 Fabricators . | . . Repair Stations . | . . Recycling Units 2 | . 2 Scanalyzers . | . . Garrison Access . | . . Total Hacks 12 | . 12 Successful 5 | . 5 Failed 7 | . 7 Catastrophic 2 | . 2 Database Lockouts . | . . Manual 11 | . 11 Terminals 10 | . 10 Fabricators . | . . Repair Stations . | . . Recycling Units 2 | . 2 Scanalyzers . | . . Garrison Access . | . . Terminal Hacks 1 | . 1 Part Schematic 1 | . 1 Fabricator Hacks . | . . Repair Station Hacks . | . . Recycling Unit Hacks . | . . Scanalyzer . | . . Garrison Access Hacks . | . . Unauthorized Hacks 4 | . 4 Terminals 2 | . 2 Botnet 2 | . 2 Fabricators . | . . Repair Stations . | . . Recycling Units 2 | . 2 Tunnel 2 | . 2 Scanalyzers . | . . Garrison Access . | . . Data Cores Recovered . | . . Used . | . . Hacking Detections 3 | . 3 Full Trace Events 2 | . 2 Feedback Events . | . . Feedback Blocked . | . . Robot Schematics Acquired . | . . Robots Built . | . . Authchips . | . . Time . | . . Total Robot Build Rating . | . . Part Schematics Acquired 1 | . 1 Parts Built . | . . Authchips . | . . Time . | . . Total Part Build Rating . | . . Part Studies Acquired . | . . Parts Repaired . | . . Time . | . . Parts Recycled . | . . Recycled Matter . | . . Retrieved Matter . | . . Retrieved Components . | . . Parts Scanalyzed . | . . Part Schematics Acquired . | . . Parts Damaged . | . . Bothacking | -11 -10 ------------ Run | Yrd Mat Used RIF Installer . | . . Robots Hacked . | . . Non-combat . | . . Combat . | . . Robot Hacks Applied . | . . Relay Couplers Released . | . . Fabnet Peak Effective % . | . . Robots Rewired . | . . Allies Hacked . | . . Hacks Repelled . | . . Allies | -11 -10 -------- Run | Yrd Mat Total Allies . | . . Largest Group . | . . Highest-Rated Group . | . . Highest-Rated Ally . | . . Total Orders . | . . Ally Attacks . | . . Total Damage . | . . Kills . | . . Allies Corrupted . | . . Allies Melted . | . . Intel | -11 -10 ------- Run | Yrd Mat Active Infowar (turns) . | . . Robot Analysis Total . | . . Derelict Logs Recovered . | . . Drone Launches . | . . Drone Recoveries . | . . Exploration | -11 -10 ------------- Run | Yrd Mat Turns Passed 759 | 82 677 Spaces Moved 514 | 71 443 Core 2 | 2 . Treads . | . . Legs . | . . Wheels 512 | 69 443 Hover . | . . Flight . | . . Fastest Speed 50 | 50 100 Average Speed 101 | 98 101 Slowest Speed 115 | 100 115 Overloaded Moves . | . . Propulsion Burnouts . | . . Robots Hopped . | . . Potential Cave-ins . | . . Cave-ins Triggered . | . . Exploration Rate (%) 34 | 4 64 Regions Visited 1 Branch Regions . Pre-discovered Areas 2 | . 2 Known Exits Taken . | . . Unknown Exits Taken 1 | 1 . Scrap Searched . | . . Spaces Dug . | . . Terrain Destroyed 12 | . 12 Melee . | . . Projectile . | . . AOE 12 | . 12 Terrain Rammed . | . . Walls Destroyed . | . . Machines Disabled . | . . Actions | -11 -10 --------- Run | Yrd Mat Total 636 | 79 557 Wait 20 | . 20 Move 513 | 70 443 Hop . | . . Pick Up 18 | 2 16 Fast Attach 7 | 6 1 Attach 1 | . 1 Detach . | . . Swap 6 | . 6 Drop 4 | . 4 Fire 67 | 1 66 Melee . | . . Ram . | . . Kick . | . . Crush . | . . Escape Stasis . | . . Rewire . | . . Trap . | . . Miscellaneous . | . . Route ------- -11/Scrapyard -10/Materials (discovered 3 exits: [*Mat x2] / [*Min]) History --------- Turn | Location | Event 13 | -11/Scrapyard | Discovered new exit (range 16) 83 | -11/Scrapyard | Entered Materials 310 | -10/Materials | Build established: Mutant 378 | -10/Materials | Discovered new exit (range 16) 456 | -10/Materials | Core integrity fell below 50% 471 | -10/Materials | Discovered new exit (range 15) 644 | -10/Materials | Core integrity fell below 20% 716 | -10/Materials | Discovered new exit (range 7) 760 | -10/Materials | Destroyed by G-34 Mercenary with Small Laser Last Messages --------------- 00725_ O-16 Technician destroyed. 00728_ Acquired 1 matter. 00732_ Connecting with Terminal... >>Schematic(Huge Storage Unit) Downloading schematic... Huge Storage Unit Rating: 1 Schematic downloaded. 00732_ ALERT: Suspicious activity at Terminal M008. Dispatching Investigation squad. 00735_ Discarded Targeting Computer. 00736_ Acquired Datajack. 00737_ Acquired 10 matter. 00739_ System corrupted: Component data lost. 00742_ T-07 Excavator is excavating. 00746_ U-05 Engineer lays Concrete. 00750_ T-07 Excavator is excavating. 00750_ U-05 Engineer lays Concrete. 00757_ Com. Wheel destroyed. 00758_ G-34 Mercenary destroyed. Map ----- +----------------------------------------------------+ | ###??# ################# ?????????????????? | | ?????# #??????????#######/######?????????????????? | | ###### ############ %* #?????????????????? | | ! = % / [ "" #?????????????????? | | ################### " #?????????????????? | | ??????????????????#%* "" #?????????????????? | | #####?????????????# = %]!* #?????????????????? | | #??????????##### ##/##]] ###?????????????????? | | #???????"" # =]]%###???????????????????? | | [ #?????? / != #?????????????????????? | | #???? """" # %*#?????????????????????? | | T" #??????????# ####### #?????????????????????? | | #??????????# #######"#?????????????????????? | | #####??????????# # #?????????????????????? | | ???????????????# # "T" #?????????????????????? | | ???????????????# + #?????????????????????? | | ???????????????# # #?????????????????????? | | #######????????# # #?????????????????????? | | #????????# ###+#########?????????????????? | | "" #????????# ??# ## #?????????????????? | | T" #????????# ??# ## T #?????????????????? | | "" #????????# ??# ## #?????????????????? | | #????????# ### ## = #?????????????????? | | """ #????????# !#= = #?????????????????? | | """ #????????# %g=""" #?????????????????? | | """ #????# #@""" #?????????????????? | | #????# # < ###### """ #?????????????????? | | #######????????# ?????# #?????????????????? | | ???????????????###??????# """ #?????????????????? | | ????????????????????????# """ #?????????????????? | | ????????????????????????# """ #?????????????????? | | ????????????????????????? ?#?????????????????? | | ?????????????????????????####????????????????????? | | | | | | | | | | | | | | | | | | | | | | | | | | | | | | | | | | | +----------------------------------------------------+ Best States ------------- Heat Dissipation 25 Energy Generation 10 Energy Capacity 250 Matter Stores 300 Matter Capacity 300 Sight Range 16 Terrain Scan Density 10 Core Shielding 20 Evasion (%) 40 Targeting Accuracy 5 Item Schematics ----------------- Huge Storage Unit | -10/Materials | Hacked Robot Schematics ------------------ None Fabricated ------------ Nothing Repaired ---------- Nothing Studied --------- None Alien Tech Used ----------------- None Achievements -------------- None Challenges ------------ None Game ------ Seed PowerMomentumBrace Manual? 0 Play Time 00:09:06 Cumulative 295.8 hours Start 2025.11.18 @ 20:06:53 End 2025.11.18 @ 20:13:45 Sessions 1 Manual Loads 0 Difficulty Rogue Special Mode None Game No. 311 Rogue 307 Adventurer 3 Explorer 1 Win Type - Total 2 Types 2/0/0/0/0/0/0/0/0/0 Lore% 79 Gallery% 76 Achievement% 62 Wizard Run 0 Options --------- Layout 0 ASCII 0 Keyboard 0 Movement Mouse Keybinds 0 Fullscreen 2 Font 18/SmallcapsGlow Map View 76x50 Zoom Use 0% Tactical HUD 1 Map Filters NONE Filters NONE Steam 1 RUN: 06501fce-8fee-4928-adf0-d47cab829e32